fUSD/lending_fUSD_20250326
["ID","MTS","AMOUNT","RATE_DAILY","PERIOD"]
[356692487,1742973042138,-150.0,0.00038894,2]
[356692488,1742973042147,-150.0,0.00038901,2]
[356692489,1742973042157,-150.0,0.00038907,2]
[356692490,1742973042166,-150.0,0.00038908,2]
[356692491,1742973042176,-150.0,0.00038909,2]
[356692492,1742973042185,-150.0,0.00038909,2]
[356692493,1742973042194,-150.0,0.00038911,2]
[356692494,1742973042203,-150.0,0.00038919,2]
[356692495,1742973042215,-150.0,0.00038922,2]
[356692496,1742973042224,-150.0,0.00038927,2]
[356692497,1742973042234,-150.0,0.00038927,2]
[356692498,1742973042243,-150.0,0.00038931,2]
[356692499,1742973042252,-150.0,0.00038932,2]
[356692500,1742973042261,-150.0,0.0003894,2]
[356692501,1742973042270,-150.0,0.00038954,2]
[356692502,1742973042279,-3130.87120938,0.0003905,2]
[356692503,1742973042288,-7126.19386816,0.00039083,120]
[356692504,1742973042297,-200.0,0.00039176,2]
[356692505,1742973042306,-200.0,0.00039176,2]
[356692506,1742973042315,-168.04,0.00039213,2]
[356692507,1742973042324,-1000.0,0.00039452,2]
[356692508,1742973042334,-400.0,0.000395,2]
[356692509,1742973042343,-152.0,0.00039584,5]
[356692510,1742973042352,-646.39591581,0.00039614,2]
[356692511,1742973042361,-546.96544,0.0003968,66]
[356692512,1742973042370,-205.0,0.000397,2]
[356692513,1742973042379,-1179.56,0.00039712,2]
[356692514,1742973042388,-150.56,0.00039726,2]
[356692515,1742973042398,-8758.49333343,0.00039877,2]
[356692516,1742973042407,-3086.5728643,0.0003988,30]
[356692517,1742973042416,-382.0,0.000399,2]
[356692518,1742973042425,-311.42317435,0.000399,2]
[356692519,1742973042435,-21433.2104354,0.00039968,3]
[356692520,1742973042444,-3130.87120938,0.00039978,15]
[356692521,1742973042453,-3949.0,0.0004,4]
[356692522,1742973042463,-170.92413037,0.0004,14]
[356692523,1742973042472,-200.0,0.0004,120]
[356692524,1742973042481,-9818.0,0.0004,6]
[356692525,1742973042490,-8249.54859745,0.0004,10]
[356692526,1742973042500,-586.81942571,0.0004,2]
[356692527,1742973042509,-276.12967728,0.0004,30]
[356692528,1742973042518,-235.0572081,0.0004,30]
[356692529,1742973042528,-377.01724242,0.0004,2]
[356692530,1742973042537,-8270.55230489,0.0004,120]
[356692531,1742973042547,-211.30564682,0.0004,2]
[356692532,1742973042556,-5199.87891005,0.0004,30]
[356692533,1742973042565,-444.21822752,0.0004,120]
[356692534,1742973042574,-150.0,0.00040657,2]
[356692535,1742973042583,-8758.49333343,0.00040702,15]
[356692536,1742973042592,-159.35031603,0.0004074,30]
[356692537,1742973042602,-183.25,0.000408,31]
[356692538,1742973042611,-183.25,0.000408,31]
[356692539,1742973042620,-183.25,0.000408,31]
[356692540,1742973042629,-183.25,0.000408,31]
[356692541,1742973042638,-183.25,0.000408,31]
[356692542,1742973042647,-183.25,0.000408,31]
[356692543,1742973042656,-183.25,0.000408,31]
[356692544,1742973042665,-183.25,0.000408,31]
[356692545,1742973042675,-183.25,0.000408,31]
[356692546,1742973042684,-183.25,0.000408,31]
[356692547,1742973042693,-183.25,0.000408,31]
[356692548,1742973042702,-183.25,0.000408,31]
[356692549,1742973042712,-21433.2104354,0.00040896,3]
[356692550,1742973042721,-3130.87120938,0.00040906,15]
[356692551,1742973042730,-159.35031603,0.00040959,30]
[356692552,1742973042739,-901.77208719,0.00041,14]
[356692553,1742973042749,-5183.0,0.00041,117]
[356692554,1742973042758,-3949.0,0.00041,4]
[356692555,1742973042768,-170.0,0.00041,14]
[356692556,1742973042777,-152.0,0.00041024,6]
[356692557,1742973042786,-151.055202,0.00041065,14]
[356692558,1742973042795,-152.196914,0.00041065,14]
[356692559,1742973042804,-502.33359425,0.00041073,5]
[356692560,1742973042813,-448.41230204,0.00041073,5]
[356692561,1742973042822,-193.529066,0.00041076,14]
[356692562,1742973042832,-152.324337,0.00041076,14]
[356692563,1742973042841,-151.0,0.00041076,14]
[356692564,1742973042850,-20491.43375153,0.00041086,3]
[356692601,1742973043466,-150.0,0.00038662,2]
[356692602,1742973043477,-150.0,0.00038686,2]
[356692603,1742973043487,-150.0,0.00038687,2]
[356692604,1742973043497,-150.0,0.00038731,2]
[356692605,1742973043506,-150.0,0.00038755,2]
[356692606,1742973043515,-195.09457693,0.00038788,2]
[356692607,1742973043525,-150.0,0.00038819,2]
[356692608,1742973043534,-150.0,0.00038893,2]
[356692609,1742973043635,-150.0,0.00038897,2]
[356692610,1742973043644,-150.0,0.00038905,2]
[356692611,1742973043654,-195.09457693,0.00038927,2]
[356692612,1742973043664,-329.11084624,0.00041086,3]
[356692616,1742973908679,258060.28056613,0.00012,2]
[356692631,1742974073339,549.35725585,0.0001,2]
[356692939,1742974232385,-252.88699913,0.0001901,7]
[356692941,1742974232398,-350.0,0.00019505,3]
[356692943,1742974232410,-692.48915088,0.0002,4]
[356692944,1742974232428,-350.0,0.00020911,3]
[356692945,1742974232440,-350.0,0.00022046,3]
[356692946,1742974232452,-300.0,0.00023609,2]
[356692947,1742974232466,-18434.62384464,0.0002361,7]
[356692948,1742974232508,-764.26548018,0.0002361,7]
[356692949,1742974232549,-601.83632846,0.0002361,7]
[356692979,1742974240586,-58125.81076115,0.0002361,7]
[356692980,1742974240595,-2413.08911358,0.00024,5]
[356692981,1742974240608,-364.31034965,0.000243,3]
[356692982,1742974240618,-500.0,0.000244,2]
[356692983,1742974240626,-27074.11725257,0.00025,2]
[356692984,1742974240635,-15000.0,0.000259,7]
[356692985,1742974240645,-159.22,0.00026849,2]
[356692986,1742974240655,-1000.0,0.00029879,2]
[356692987,1742974240664,-560.5917,0.0003058,2]
[356692988,1742974240673,-138320.80864162,0.0003068,2]
[356692989,1742974240717,-2368.6497961,0.0003068,2]
[356692990,1742974240803,-13216.95517656,0.0003068,2]
[356692991,1742974240812,-2817.78408846,0.00030711,2]
[356692992,1742974240821,-1000.0,0.0003083,2]
[356692993,1742974240833,-8609.67378451,0.000309,2]
[356692994,1742974240849,-275.472,0.000309,2]
[356692995,1742974240860,-381.124,0.000309,2]
[356693001,1742974243416,-8730.9939824,0.000309,2]
[356693004,1742974246390,-9271.43985095,0.000309,2]
[356693008,1742974246721,-36563.84420553,0.000309,2]
[356693014,1742974257536,-250.0,0.000309,2]
[356693015,1742974516995,500.0,0.00032247,120]
[356693016,1742974531428,500.0,0.00032254,120]
[356693017,1742974625205,400.0,0.00032254,120]
[356693018,1742974888701,500.0,0.00032257,120]
[356693019,1742975142744,2991.10173698,0.00032257,30]
[356693043,1742975316530,9200.0,0.00032257,120]
[356693247,1742975431598,-250.0,0.00025,2]
[356693248,1742975431608,-157.7,0.00026849,2]
[356693249,1742975431617,-300.0,0.00027,2]
[356693250,1742975431626,-350.0,0.000275,3]
[356693251,1742975431636,-150.0,0.00029836,2]
[356693252,1742975431645,-1034.87,0.0002985,2]
[356693253,1742975431654,-151.89335689,0.000299,2]
[356693254,1742975431663,-662.037,0.0003048,26]
[356693255,1742975431673,-644.3683,0.0003048,2]
[356693256,1742975431682,-17023.78033551,0.0003058,2]
[356693257,1742975431701,-369.2797303,0.0003058,2]
[356693258,1742975431862,-11035.77495328,0.0003058,2]
[356693259,1742975431873,-450.0,0.0003058,2]
[356693260,1742975431924,-1358.01889573,0.0003058,2]
[356693261,1742975431936,-503.4735659,0.0003058,2]
[356693262,1742975431947,-310.31,0.0003058,2]
[356693263,1742975432091,-395.26598899,0.0003058,2]
[356693323,1742975437482,-1611.77277712,0.0003058,2]
[356693324,1742975437494,-7706.03182819,0.0003058,2]
[356693325,1742975437552,-12145.75712498,0.0003058,2]
[356693326,1742975437562,-500.0,0.0003058,2]
[356693327,1742975437571,-1772.85,0.00030599,120]
[356693328,1742975437581,-1840.86372157,0.00030696,5]
[356693329,1742975437591,-1840.86372157,0.00030696,5]
[356693330,1742975437601,-150.0,0.00030744,7]
[356693331,1742975437610,-30617.7671375,0.000309,2]
[356693335,1742975439692,-441.94,0.000309,2]
[356693336,1742975439881,-4055.43180006,0.000309,2]
[356693337,1742975439894,-828.85471368,0.000309,2]
[356693338,1742975439913,-2207.1388121,0.000309,2]
[356693339,1742975439925,-579.38940017,0.000309,2]
[356693393,1742975443787,-967.2589,0.000309,2]
[356693394,1742975443800,-273.51854412,0.000309,2]
[356693395,1742975443811,-5939.47269582,0.000309,2]
[356693396,1742975443822,-359.10716564,0.000309,5]
[356693397,1742975443832,-244.84,0.00031141,2]
[356693398,1742975443842,-455.80453,0.0003158,48]
[356693399,1742975443851,-419.7547,0.00031599,7]
[356693400,1742975443861,-455.80453,0.0003166,48]
[356693401,1742975443870,-455.80453,0.0003182,49]
[356693402,1742975443879,-455.80454,0.0003197,49]
[356693403,1742975443889,-200.0,0.00031973,2]
[356693404,1742975443898,-160.0,0.00032,120]
[356693405,1742975443907,-1034.87,0.00032114,2]
[356693406,1742975443917,-455.80453,0.0003213,49]
[356693407,1742975443926,-419.7149,0.00032157,2]
[356693408,1742975443935,-2536.00567965,0.00032157,2]
[356693409,1742975443946,-227.99297228,0.00032238,2]
[356693410,1742975443955,-199.34679718,0.00032256,2]
[356693411,1742975443965,-177.83342788,0.00032256,2]
[356693412,1742975443978,-208.0086081,0.00032256,2]
[356693413,1742975443987,-4235.4624787,0.00032257,20]
[356693414,1742975443996,-2635.72765854,0.00032257,2]
[356693415,1742975444006,-150.39314137,0.00032257,2]
[356693416,1742975444016,-247.62698013,0.00032257,2]
[356693417,1742975444026,-163.42596889,0.00032257,2]
[356693418,1742975444035,-1254.09396561,0.00032257,2]
[356693419,1742975444045,-7672.87943412,0.00032257,2]
[356693420,1742975444056,-1035.15824402,0.00032257,2]
[356693421,1742975444161,-591.20166924,0.00032257,2]
[356693422,1742975444171,-9183.53430653,0.00032257,2]
[356693423,1742975444180,-1303.6890707,0.00032257,2]
[356693424,1742975444190,-3400.20528633,0.00032257,2]
[356693425,1742975444200,-39440.39268218,0.00032257,2]
[356693426,1742975444210,-15065.07250916,0.00032257,7]
[356693427,1742975444220,-560.42882167,0.00032257,5]
[356693428,1742975444229,-200.0,0.00032257,2]
[356693429,1742975444239,-200.0,0.00032257,2]
[356693430,1742975444249,-501.28610908,0.00032273,5]
[356693431,1742975444259,-500.0,0.00032273,2]
[356693432,1742975444269,-308.08142644,0.00032273,5]
[356693433,1742975444278,-500.0,0.00032273,2]
[356693434,1742975444288,-455.80453,0.0003229,50]
[356693435,1742975444298,-200.0,0.0003258,2]
[356693436,1742975444308,-200.0,0.0003258,2]
[356693437,1742975444318,-200.0,0.00032905,2]
[356693438,1742975444328,-156.39,0.00032925,2]
[356693439,1742975444338,-2500.0,0.00033315,2]
[356693440,1742975444347,-1000.0,0.00033415,2]
[356693441,1742975444357,-190.38,0.00033461,2]
[356693442,1742975444366,-1500.0,0.00033515,60]
[356693443,1742975444376,-2536.00567959,0.00033684,2]
[356693444,1742975444385,-186.33,0.00034064,120]
[356693445,1742975444395,-1282.0,0.00034112,2]
[356693446,1742975444404,-2037.0,0.00034112,2]
[356693447,1742975444414,-642.0,0.00034112,2]
[356693448,1742975444423,-1421.0,0.00034112,2]
[356693449,1742975444432,-572.0,0.00034112,2]
[356693450,1742975444443,-788.0,0.00034112,2]
[356693451,1742975444452,-1273.0,0.00034112,2]
[356693452,1742975444461,-542.0,0.00034112,2]
[356693453,1742975444470,-4087.0,0.00034112,2]
[356693454,1742975444479,-907.0,0.00034112,2]
[356693455,1742975444488,-1431.0,0.00034112,2]
[356693456,1742975444498,-3943.0,0.00034112,2]
[356693457,1742975444508,-151.0,0.00034112,2]
[356693458,1742975444517,-150.0,0.00034112,2]
[356693459,1742975444527,-150.0,0.00034112,2]
[356693460,1742975444536,-1015.0,0.00034112,2]
[356693461,1742975444546,-17547.0715,0.00034114,2]
[356693462,1742975444555,-1000.0,0.00034114,2]
[356693463,1742975444564,-1034.87,0.00034378,2]
[356693464,1742975444574,-150.0,0.00034548,10]
[356693465,1742975444583,-1000.0,0.00034684,2]
[356693466,1742975444593,-150.0,0.00034812,2]
[356693467,1742975444603,-200.0,0.00034892,120]
[356693468,1742975444612,-296.0,0.000349,2]
[356693469,1742975444622,-861.44560268,0.00035,2]
[356693470,1742975444631,-257.30167389,0.00035,30]
[356693471,1742975444641,-2536.00567959,0.00035211,2]
[356693472,1742975444650,-150.56,0.00035616,2]
[356693473,1742975444660,-150.0,0.00036182,2]
[356693474,1742975444669,-20400.84831334,0.000362,2]
[356693475,1742975444690,-466.04883812,0.000362,2]
[356693479,1742975445722,-3033.10284854,0.000362,2]
[356693480,1742975445735,-1034.87,0.00036641,2]
[356693481,1742975445747,-2536.00567959,0.00036738,2]
[356693482,1742975445759,-159.22,0.00036862,2]
[356693483,1742975445771,-161.83175448,0.00037012,2]
[356693484,1742975445783,-1055.101,0.00037112,2]
[356693485,1742975445795,-2037.0,0.00037112,2]
[356693486,1742975445807,-642.0,0.00037112,2]
[356693487,1742975445820,-1421.0,0.00037112,2]
[356693488,1742975445832,-572.0,0.00037112,2]
[356693489,1742975445845,-397.19195642,0.00037112,2]
[356693490,1742975445866,-390.80804358,0.00037112,2]
[356693491,1742975445879,-507.61132774,0.00037112,2]
[356693528,1742976631929,-250.0,0.00025,2]
[356693529,1742976631939,-350.0,0.00025925,3]
[356693530,1742976631949,-159.57,0.00026849,2]
[356693531,1742976631959,-350.0,0.000275,3]
[356693532,1742976631968,-350.0,0.00028152,3]
[356693533,1742976631978,-500.0,0.000308,2]
[356693534,1742976631986,-302.39825667,0.000308,2]
[356693535,1742976631996,-896.624,0.00031478,29]
[356693536,1742976632005,-500.0,0.00032157,2]
[356693537,1742976632015,-9522.48341896,0.00032157,2]
[356693566,1742976637695,-10357.0,0.00032157,2]
[356693567,1742976637800,-1019.51088581,0.00032157,2]
[356693612,1742976644503,-373.5132,0.00032157,2]
[356693613,1742976644527,-413.4868,0.00032157,2]
[356693619,1742976668374,190.160512,7.945e-05,2]
[356693622,1742977508200,329299.93234991,0.00012,2]
[356693623,1742977554778,1880.0,0.0001173,2]
[356693625,1742977617554,702.01940231,0.00015,14]
[356693636,1742977674835,1974.19900077,0.0001,2]
[356693637,1742977678578,484234.9721517,0.0001,2]
[356693638,1742977678603,528.0,0.0001,2]
[356693639,1742977678627,394.6,0.0001,2]
[356693640,1742977678654,585506.40951023,0.0001,2]
[356693715,1742977831873,-876.314721,0.0002,4]
[356693737,1742977837863,-1415.685339,0.0002,4]
[356693738,1742977837872,-350.0,0.00022,3]
[356693739,1742977837881,-350.0,0.000225,3]
[356693740,1742977837891,-350.0,0.00025458,3]
[356693741,1742977837899,-159.22,0.00026849,2]
[356693742,1742977837909,-500.0,0.00030873,2]
[356693743,1742977837918,-10865.27110471,0.000309,2]
[356693779,1742977840174,-1405.82606942,0.000309,2]
[356693781,1742977843013,-2518.04594419,0.000309,2]
[356693795,1742978332658,354.0,0.0002501,120]
[356693884,1742979032090,-250.0,0.00025,2]
[356693885,1742979032100,-185.33230842,0.00025,4]
[356693886,1742979032322,-525.66769158,0.00025,4]
[356693887,1742979032332,-207.6910754,0.00025,3]
[356693888,1742979032383,-142.3089246,0.00025,3]
[356693889,1742979032393,-350.0,0.00025955,3]
[356693890,1742979032402,-157.7,0.00026849,2]
[356693891,1742979032411,-300.0,0.00027,2]
[356693892,1742979032420,-350.0,0.000275,3]
[356693893,1742979032429,-400.0,0.00030599,2]
[356693894,1742979032438,-150.0,0.000306,2]
[356693895,1742979032447,-2320.21653694,0.000306,2]
[356693945,1742979038048,-7686.16640563,0.000306,2]
[356693946,1742979038058,-717.299,0.00030899,27]
[356693947,1742979038068,-150.0,0.00030899,2]
[356693948,1742979038078,-57562.72382575,0.000309,2]
[356693949,1742979038087,-174.02165,0.000309,47]
[356693950,1742979038097,-714.15308121,0.000309,2]
[356693951,1742979038106,-347.13692694,0.000309,5]
[356693952,1742979038116,-200.0,0.000309,2]
[356693953,1742979038125,-860.17,0.00031115,2]
[356693954,1742979038135,-200.0,0.00031209,2]
[356693955,1742979038144,-200.0,0.00031521,2]
[356693956,1742979038153,-200.0,0.00031836,2]
[356693957,1742979038163,-200.0,0.00032157,2]
[356693958,1742979038172,-200.0,0.00032157,2]
[356693959,1742979038181,-315.52,0.00032257,30]
[356693960,1742979038191,-4384.60102109,0.00032257,30]
[356693961,1742979038200,-200.0,0.00032479,2]
[356693962,1742979038210,-200.0,0.00032479,2]
[356693963,1742979038220,-200.0,0.00032803,2]
[356693964,1742979038229,-1000.0,0.00032928,2]
[356693965,1742979038239,-18927.15645932,0.000331,2]
[356693966,1742979038310,-307.30313142,0.000331,2]
[356694007,1742979040501,-4665.54040926,0.000331,2]
[356694008,1742979040510,-168.04,0.00033123,2]
[356694009,1742979040519,-210.937,0.00033151,2]
[356694010,1742979040529,-158.3783,0.00033151,2]
[356694011,1742979040538,-16470.04,0.00033152,2]
[356694012,1742979040547,-1395.84,0.00033208,60]
[356694013,1742979040556,-159.253341,0.00033251,7]
[356694014,1742979040565,-199.626427,0.00033251,7]
[356694015,1742979040574,-151.0,0.00033251,7]
[356694016,1742979040584,-151.890802,0.00033251,7]
[356694017,1742979040593,-151.0,0.00033251,7]
[356694018,1742979040602,-185.816957,0.00033251,7]
[356694019,1742979040611,-195.48,0.00033251,2]
[356694020,1742979040620,-2063.781,0.00033251,2]
[356694021,1742979040629,-1282.0,0.00033251,2]
[356694022,1742979040639,-152.834,0.00033251,2]
[356694023,1742979040648,-650.852,0.00033251,2]
[356694024,1742979040657,-1486.926,0.00033251,2]
[356694025,1742979040666,-691.157,0.00033251,2]
[356694026,1742979040676,-788.0,0.00033251,2]
[356694027,1742979040685,-1323.252,0.00033251,2]
[356694028,1742979040809,-542.0,0.00033251,2]
[356694029,1742979040819,-4087.0,0.00033251,2]
[356694030,1742979040828,-1463.38,0.00033251,2]
[356694031,1742979040838,-907.0,0.00033251,2]
[356694032,1742979040847,-214.65,0.00033251,2]
[356694033,1742979040856,-1015.0,0.00033251,2]
[356694035,1742979040865,-3943.0,0.00033251,2]
[356694037,1742979040875,-250.0,0.00033251,2]
[356694039,1742979040884,-1116.0,0.00033251,2]
[356694041,1742979040893,-150.0,0.0003327,2]
[356694043,1742979040902,-150.0,0.00033271,7]
[356694044,1742979040912,-1834.69052871,0.00033358,2]
[356694045,1742979040921,-181.35,0.00033366,120]
[356694046,1742979040930,-4162.81,0.00033375,2]
[356694047,1742979040940,-860.17,0.00033379,2]
[356694048,1742979040949,-3287.98,0.00033458,2]
[356694049,1742979040959,-502.08937132,0.00033493,2]
[356694050,1742979040969,-150.0,0.00033659,2]
[356694051,1742979040978,-150.0,0.0003366,2]
[356694052,1742979040987,-509.4459919,0.0003412,5]
[356694053,1742979040997,-250.0,0.00034415,2]
[356694054,1742979041006,-159.88,0.00034425,2]
[356694055,1742979041015,-150.0,0.00034541,2]
[356694056,1742979041024,-300.0,0.00034603,2]
[356694057,1742979041034,-159.88,0.00034621,2]
[356694058,1742979041043,-1398.69,0.00034663,2]
[356694059,1742979041053,-153.422,0.00034733,2]
[356694060,1742979041063,-1834.69052869,0.00034752,2]
[356694061,1742979041074,-786.0,0.000348,2]
[356694062,1742979041083,-159.88,0.00034818,2]
[356694063,1742979041093,-421.1919,0.0003486,2]
[356694064,1742979041103,-151.0,0.0003486,7]
[356694065,1742979041113,-157.178502,0.00034893,7]
[356694066,1742979041123,-151.0,0.00034893,7]
[356694067,1742979041133,-151.0,0.00034893,7]
[356694068,1742979041142,-213.348004,0.00034893,7]
[356694069,1742979041152,-151.0,0.00034893,7]
[356694070,1742979041162,-213.348004,0.00034893,7]
[356694071,1742979041171,-151.0,0.00034909,7]
[356694072,1742979041180,-156.222946,0.00034909,7]
[356694073,1742979041190,-152.324337,0.00034909,7]
[356694074,1742979041199,-282.053755,0.00034909,7]
[356694075,1742979041209,-151.055202,0.00034909,7]
[356694076,1742979041218,-151.0,0.00034909,7]
[356694077,1742979041230,-151.0,0.00034909,7]
[356694078,1742979041240,-161.482077,0.00034909,7]
[356694079,1742979041249,-151.0,0.00034909,7]
[356694080,1742979041259,-155.037883,0.00034909,7]
[356694081,1742979041268,-193.529066,0.00034909,7]
[356694082,1742979041278,-151.0,0.00034909,7]
[356694083,1742979041287,-151.0,0.00034909,7]
[356694084,1742979041297,-151.0,0.00034909,7]
[356694085,1742979041308,-151.0,0.00034909,7]
[356694086,1742979041318,-151.0,0.00034909,7]
[356694087,1742979041327,-152.196914,0.00034909,7]
[356694088,1742979041337,-151.0,0.00034909,7]
[356694089,1742979041346,-151.0,0.00034909,7]
[356694090,1742979041356,-151.917789,0.00034909,7]
[356694091,1742979041365,-153.602421,0.00034909,7]
[356694092,1742979041375,-151.0,0.00034909,7]
[356694093,1742979041385,-151.0,0.00034909,7]
[356694094,1742979041395,-213.348004,0.00034909,7]
[356694095,1742979041404,-156.794174,0.00034909,7]
[356694096,1742979041413,-213.348004,0.00034909,7]
[356694097,1742979041422,-218.311288,0.0003496,7]
[356694098,1742979041431,-151.0,0.0003496,7]
[356694099,1742979041441,-158.578525,0.0003496,7]
[356694100,1742979041450,-200.541963,0.0003496,7]
[356694101,1742979041459,-151.0,0.0003496,7]
[356694102,1742979041470,-151.0,0.0003496,7]
[356694103,1742979041479,-151.0,0.0003496,7]
[356694104,1742979041489,-151.0,0.0003496,7]
[356694105,1742979041498,-1464.46322864,0.00035,2]
[356694106,1742979041508,-159.88,0.00035015,2]
[356694107,1742979041517,-159.88,0.00035211,2]
[356694108,1742979041527,-500.0,0.0003533,2]
[356694109,1742979041537,-159.88,0.00035408,2]
[356694110,1742979041547,-159.88,0.00035605,2]
[356694111,1742979041556,-150.56,0.00035616,2]
[356694112,1742979041566,-860.17,0.00035643,2]
[356694113,1742979041575,-159.88,0.00035802,2]
[356694114,1742979041584,-174.02165,0.000359,47]
[356694115,1742979041593,-150.0,0.00035911,2]
[356694116,1742979041603,-1834.69052869,0.00036145,2]
[356694117,1742979041613,-203.774643,0.00036251,7]
[356694118,1742979041623,-151.0,0.00036251,7]
[356694119,1742979041632,-160.004272,0.00036251,7]
[356694120,1742979041641,-151.0,0.00036251,7]
[356694121,1742979041650,-151.0,0.00036251,7]
[356694122,1742979041661,-176.647934,0.00036251,7]
[356694123,1742979041670,-151.0,0.00036251,7]
[356694124,1742979041679,-213.348004,0.00036251,7]
[356694125,1742979041688,-213.348004,0.00036251,7]
[356694126,1742979041698,-300.747108,0.00036251,7]
[356694127,1742979041706,-2037.0,0.00036251,2]
[356694128,1742979041716,-642.0,0.00036251,2]
[356694129,1742979041726,-1421.0,0.00036251,2]
[356694130,1742979041735,-788.0,0.00036251,2]
[356694131,1742979041745,-1273.0,0.00036251,2]
[356694132,1742979041754,-542.0,0.00036251,2]
[356694133,1742979041763,-2883.76021279,0.00036251,2]
[356694134,1742979041775,-673.422233,0.00036251,2]
[356694137,1742979046216,-151.0,0.00033251,7]
[356694138,1742979046226,-164.89644097,0.00033251,7]
[356694139,1742979046387,-7.38836803,0.00033251,7]
[356694140,1742979046397,-155.222796,0.00033458,7]
[356694141,1742979046407,-172.284809,0.00033458,7]
[356694142,1742979046416,-250.0,0.0003445,2]
[356694143,1742979046426,-529.81755421,0.00036251,2]
[356694144,1742979046434,-36.28647276,0.00036251,2]
[356694331,1742980232271,-159.57,0.00026849,2]
[356694332,1742980232281,-261.94934089,0.00027114,3]
[356694333,1742980232293,-88.05065911,0.00027114,3]
[356694334,1742980232302,-350.0,0.0002791,3]
[356694335,1742980232312,-345.67002145,0.000289,5]
[356694336,1742980232321,-350.0,0.00029534,3]
[356694337,1742980232330,-500.0,0.00032375,2]
[356694338,1742980232339,-222.71709783,0.00032964,2]
[356694339,1742980232636,-174.28290217,0.00032964,2]
[356694340,1742980232646,-1232.51709825,0.00032965,30]
[356694344,1742980238207,-306.95276255,0.00032965,30]
[356694345,1742980238313,-2522.406153,0.00032965,30]
[356694346,1742980238322,-1311.243547,0.00032965,30]
[356694347,1742980238365,-3029.27510308,0.00032965,30]
[356694348,1742980238419,-1220.71750678,0.00032965,30]
[356694349,1742980240557,-305.2035254,0.00032965,30]
[356694350,1742980240622,-3758.64134947,0.00032965,30]
[356694355,1742980246234,-2574.8968244,0.00032965,30]
[356694356,1742980246289,-261.81012156,0.00032965,30]
[356694357,1742980246298,-594.39914268,0.00033328,2]
[356694358,1742980246447,-136.74085732,0.00033328,2]
[356694359,1742980246457,-504.555,0.00033358,2]
[356694360,1742980246467,-150.0,0.0003366,2]
[356694361,1742980246476,-150.0,0.00033786,2]
[356694362,1742980246485,-2037.0,0.00033786,2]
[356694363,1742980246495,-642.0,0.00033786,2]
[356694364,1742980246504,-788.0,0.00033786,2]
[356694365,1742980246514,-1273.0,0.00033786,2]
[356694366,1742980246523,-907.0,0.00033786,2]
[356694367,1742980246532,-1431.0,0.00033786,2]
[356694368,1742980246542,-4087.0,0.00033786,2]
[356694369,1742980246551,-336.643,0.00033786,2]
[356694370,1742980246564,-3943.0,0.00033786,2]
[356694371,1742980246573,-151.0,0.00033786,2]
[356694372,1742980246582,-1015.0,0.00033786,2]
[356694373,1742980246591,-174.40437557,0.00035,120]
[356694374,1742980246601,-1921.64,0.00035115,2]
[356694375,1742980246610,-497.12578567,0.00035298,7]
[356694376,1742980246620,-23900.0,0.00035299,2]
[356694377,1742980246630,-151.0,0.00035299,7]
[356694378,1742980246638,-151.0,0.00035299,7]
[356694379,1742980246648,-151.0,0.00035299,7]
[356694380,1742980246657,-195.48,0.00035336,2]
[356694381,1742980246666,-186.33,0.00035384,120]
[356694382,1742980246675,-168.04,0.00035531,2]
[356694383,1742980246685,-731.14,0.00035592,2]